Cogmind - Beta 16 @@@ ROGUE MODE // 2026.01.12 @ 15:43:12 Player: BottomOfTheSwamp Result: Destroyed by as-37944 with Assembled Rifle Performance ------------- Evolutions (0) 0 Regions Visited (2) 400 Robots Destroyed (9) 45 Value Destroyed (152) 152 Prototype IDs (0) 0 Alien Tech Used (0) 0 Bonus (0) 0 TOTAL SCORE: 597 Bonus ------- None Cogmind --------- Core Integrity 0/250 Matter 265/300 Energy 100/100 System Corruption 5% Temperature Cool (0) Movement Core (100) Ox1 Location -10/Mines Parts ------- > --- POWER (1) -------- (None) > --- PROPULSION (2) --- (None) > --- UTILITY (2) ------ Small Storage Unit > --- WEAPON (2) ------- (None) > --- INVENTORY (8) ---- Ion Engine Aluminum Leg Heat Sink Signal Interpreter Light Assault Rifle Light Cannon Light Cannon Peak State ------------ > --- POWER ------------ Ion Engine > --- PROPULSION ------- Aluminum Leg Aluminum Leg > --- UTILITY ---------- Small Storage Unit ECM Suite > --- WEAPON ----------- Assault Rifle Light Assault Rifle > --- INVENTORY -------- Aluminum Leg Heat Sink Light Cannon Grenade Launcher [Rating: 7] Favorites ----------- Power Ion Engine Engine Ion Engine Propulsion Aluminum Leg Leg Aluminum Leg Utility Small Storage Unit Device ECM Suite Storage Small Storage Unit Weapon Assault Rifle Ballistic Gun Assault Rifle Launcher Grenade Launcher Build | -11 -10 -10 ------- Run | Yrd Mat Min Slots Evolved . | . . . Power . | . . . Propulsion . | . . . Utility . | . . . Weapon . | . . . Parts Attached 9 | 6 2 1 Power 2 | 1 1 . Engine 2 | 1 1 . Core . | . . . Reactor . | . . . Propulsion 2 | 2 . . Treads . | . . . Leg 2 | 2 . . Wheel . | . . . Hover . | . . . Flight . | . . . Utility 2 | 1 1 . Device 1 | . 1 . Storage 1 | 1 . . Processor . | . . . Hackware . | . . . Protection . | . . . Artifact . | . . . Weapon 3 | 2 . 1 Energy Gun . | . . . Energy Cannon . | . . . Ballistic Gun 2 | 2 . . Ballistic Cannon . | . . . Launcher 1 | . . 1 Special Weapon . | . . . Impact Weapon . | . . . Slashing Weapon . | . . . Piercing Weapon . | . . . Special Melee Weapon . | . . . Unidentified Prototypes . | . . . Parts Lost 7 | . 1 6 Power 2 | . 1 1 Propulsion 2 | . . 2 Utility 1 | . . 1 Weapon 2 | . . 2 Highest Loss Streak 6 | . 1 6 To Critical Strikes 1 | . . 1 Average Backups 3 | . 1 6 Power . | . . 1 Propulsion . | . . 1 Utility . | . . 1 Weapon 1 | . . 3 Tool/Special . | . . . Unused Backups 6 | . . 6 Power 1 | . . 1 Propulsion 1 | . . 1 Utility 2 | . . 2 Weapon 2 | . . 2 Tool/Special . | . . . Average Slot Usage (%) 89 | . 81 96 Engine 10 | . 7 13 Leg 27 | . 28 26 Device 8 | . 3 13 Storage 14 | . 14 14 Ballistic Gun 27 | . 28 27 Peak Build Rating 7 | 6 7 7 Average Rating 6 | 3 5 6 On Entrance 4 | . 6 7 Avg Prop Armor Cover (%) . | . . . Naked Turns . | . . . Heaviest Build 17 | 11 15 17 Greatest Support 20 | 20 20 20 Greatest Overweight (x) 2 | . . 2 Average Overweight (x) . | . . . Largest Inventory Capacity 8 | 8 8 8 Average Capacity 7 | 7 8 8 Most Carried 7 | 5 6 7 Average Carried 3 | . 1 6 Final Capacity 8 | 8 8 8 Final Carried 7 | . 6 7 Class Distribution -------------------- 100% | Mutant Dominant Class ---------------- Mutant | -10/Materials Mutant | -10/Mines Resources | -11 -10 -10 ----------- Run | Yrd Mat Min Matter Collected 395 | 260 83 52 Remotely . | . . . Salvage Created 195 | . 137 58 Parts 15 | . 7 8 Haulers Intercepted . | . . . Recyclers Shooed 2 | . . 2 Parts Field Recycled . | . . . Retrieved Matter . | . . . Parts Self-Destructed . | . . . Prevented . | . . . Parts Restored . | . . . Kills | -11 -10 -10 ------- Run | Yrd Mat Min Combat Hostiles Destroyed 12 | . 5 7 Guns 7 | . 5 2 AOE 5 | . . 5 Classes Destroyed 5 | . 3 2 Builder 1 | . . 1 Watcher 1 | . 1 . Swarmer 5 | . 3 2 Grunt 2 | . 2 . Assembled 5 | . . 5 Best Kill Streak 6 | . 3 6 Combat Bots Only 5 | . 3 5 Max Kills in Single Turn 3 | . 2 3 Gunslinging 1 | . 1 . Exploded 2 | . . 2 Melee . | . . . Uniques/NPCs Destroyed . | . . . Combat | -11 -10 -10 -------- Run | Yrd Mat Min Hostile Shots Fired 88 | . 22 66 Missed 26 | . 6 20 Hits 62 | . 16 46 Melee 5 | . . 5 Projectile 57 | . 16 41 Critical Strikes 1 | . . 1 Damage Taken 860 | . 180 680 Core 263 | . 48 215 Absorbed by Shields . | . . . Core Remaining (%) 100 | 100 . . Volleys Fired 35 | . 24 11 Largest 2 | . 2 2 Hottest 50 | . 40 50 Shots Fired 69 | . 48 21 Gun 65 | . 48 17 Cannon . | . . . Launcher 4 | . . 4 Special . | . . . Kinetic 65 | . 48 17 Thermal . | . . . Explosive 4 | . . 4 Electromagnetic . | . . . Robot Hit Streak 7 | . 7 4 Robot Miss Streak 3 | . 3 2 Penetration Max . | . . . Secondary Targets 2 | . 1 1 Max Gunslinging Chain 1 | . 1 1 Shots Hit Robots 47 | . 32 15 Core Hits 31 | . 13 18 Critical Kills 1 | . 1 . Critical Parts Destroyed 1 | . . 1 Critical Strikes 2 | . 1 1 Destroy 2 | . 1 1 Melee Attacks . | . . . Impact . | . . . Slashing . | . . . Piercing . | . . . Sneak Attacks . | . . . Combat Hostiles . | . . . Follow-up Attacks . | . . . Damage Inflicted 964 | . 332 632 Guns 476 | . 332 144 Cannons . | . . . Explosions 488 | . . 488 Melee . | . . . Ramming . | . . . Kinetic 476 | . 332 144 Thermal . | . . . Explosive 488 | . . 488 Electromagnetic . | . . . Impact . | . . . Slashing . | . . . Piercing . | . . . Highest Corruption 5 | . . 5 Average Corruption 3 | . . 3 Corruption Purged . | . . . Corruption Blocked . | . . . Overload Shots . | . . . Overflow Damage 18 | . . 18 Projectiles . | . . . Explosions 18 | . . 18 Melee . | . . . Knockbacks . | . . . Impact . | . . . Kinetic . | . . . Secondary . | . . . Self-Inflicted Damage 79 | . . 79 Shots 2 | . . 2 Rammed . | . . . Targets Rammed . | . . . Kicked . | . . . Crushed . | . . . Highest Temperature 12 | . 12 . Average Temperature 5 | . 5 . Received Heat Transfer 87 | . 87 . Siege Activations . | . . . Martial Activations . | . . . Shielding Activations . | . . . Robots Disrupted . | . . . Combat Hostiles . | . . . Robots Corrupted . | . . . Combat Hostiles . | . . . Parts Fried . | . . . Impact Corruptions . | . . . Robots Melted . | . . . Combat Hostiles . | . . . Parts Melted . | . . . Heat Transferred . | . . . Parts Sabotaged . | . . . Parts Stolen . | . . . Parts Stripped . | . . . Power Chain Reactions . | . . . Alert | -11 -10 -10 ------- Run | Yrd Mat Min Maximum Alert Level . | . . . Low Security (%) 100 | 100 100 100 Level 1 . | . . . Level 2 . | . . . Level 3 . | . . . Level 4 . | . . . Level 5 . | . . . High Security . | . . . Max Security . | . . . Peak Influence 76 | . 70 76 Initial 11 | . . 11 Average 23 | . 25 26 Influence Increases 255 | . 142 113 Destroy 0b10 Robot/C 140 | . 100 40 Destroy 0b10 Robot/NC 10 | . 5 5 Destroy Leader 32 | . 22 10 Destroy Structure 28 | . . 28 Lose Combat Pursuer 45 | . 15 30 Influence Decreases 255 | . 112 143 Entered New Map 19 | . . 19 Time Decay 193 | . 102 91 Lost Part 43 | . 10 33 Squads Dispatched . | . . . Investigation . | . . . Extermination . | . . . Reinforcement . | . . . Assault . | . . . Garrison . | . . . Intercept . | . . . Searches Triggered . | . . . Construction Impeded . | . . . Haulers Reinforced . | . . . Active Scanning Responses . | . . . Cargo Convoy Interrupts . | . . . Stealth | -11 -10 -10 --------- Run | Yrd Mat Min Distress Signals 1 | . 1 . Communications Jammed . | . . . Distress Signals . | . . . Times Spotted 32 | . 10 22 Peak Tracking Total 16 | . 4 16 Tactical Retreats 3 | . 1 2 Traps | -11 -10 -10 ------- Run | Yrd Mat Min Traps Triggered . | . . . Indirectly . | . . . Trap Hack Attempts . | . . . Triggered . | . . . Disarmed . | . . . Reprogrammed . | . . . Reused . | . . . Traps Extracted . | . . . Installed . | . . . Triggered . | . . . Machines | -11 -10 -10 ---------- Run | Yrd Mat Min Machines Disabled . | . . . Max in Single Turn . | . . . Machines Repaired . | . . . Machines Dismantled . | . . . Machines Sabotaged . | . . . Overloaded Fab Kills . | . . . Hacking | -11 -10 -10 --------- Run | Yrd Mat Min Machines Accessed . | . . . Terminals . | . . . Fabricators . | . . . Repair Stations . | . . . Recycling Units . | . . . Scanalyzers . | . . . Garrison Access . | . . . Total Hacks . | . . . Successful . | . . . Failed . | . . . Catastrophic . | . . . Database Lockouts . | . . . Manual . | . . . Terminals . | . . . Fabricators . | . . . Repair Stations . | . . . Recycling Units . | . . . Scanalyzers . | . . . Garrison Access . | . . . Terminal Hacks . | . . . Fabricator Hacks . | . . . Repair Station Hacks . | . . . Recycling Unit Hacks . | . . . Scanalyzer . | . . . Garrison Access Hacks . | . . . Unauthorized Hacks . | . . . Terminals . | . . . Fabricators . | . . . Repair Stations . | . . . Recycling Units . | . . . Scanalyzers . | . . . Garrison Access . | . . . Data Cores Recovered . | . . . Used . | . . . Hacking Detections . | . . . Full Trace Events . | . . . Feedback Events . | . . . Feedback Blocked . | . . . Robot Schematics Acquired . | . . . Robots Built . | . . . Authchips . | . . . Time . | . . . Total Robot Build Rating . | . . . Part Schematics Acquired . | . . . Parts Built . | . . . Authchips . | . . . Time . | . . . Total Part Build Rating . | . . . Part Studies Acquired . | . . . Parts Repaired . | . . . Time . | . . . Parts Recycled . | . . . Recycled Matter . | . . . Retrieved Matter . | . . . Retrieved Components . | . . . Parts Scanalyzed . | . . . Part Schematics Acquired . | . . . Parts Damaged . | . . . Bothacking | -11 -10 -10 ------------ Run | Yrd Mat Min Used RIF Installer . | . . . Robots Hacked . | . . . Non-combat . | . . . Combat . | . . . Robot Hacks Applied . | . . . Relay Couplers Released . | . . . Fabnet Peak Effective % . | . . . Robots Rewired . | . . . Allies Hacked . | . . . Hacks Repelled . | . . . Allies | -11 -10 -10 -------- Run | Yrd Mat Min Total Allies . | . . . Largest Group . | . . . Highest-Rated Group . | . . . Highest-Rated Ally . | . . . Total Orders . | . . . Ally Attacks . | . . . Total Damage . | . . . Kills . | . . . Allies Corrupted . | . . . Allies Melted . | . . . Intel | -11 -10 -10 ------- Run | Yrd Mat Min Active Infowar (turns) 60 | . 1 59 ECM 60 | . 1 59 Robot Analysis Total . | . . . Derelict Logs Recovered . | . . . Drone Launches . | . . . Drone Recoveries . | . . . Exploration | -11 -10 -10 ------------- Run | Yrd Mat Min Turns Passed 591 | 51 258 282 Spaces Moved 374 | 46 121 207 Core 25 | 23 . 2 Treads . | . . . Legs 349 | 23 121 205 Wheels . | . . . Hover . | . . . Flight . | . . . Fastest Speed 50 | 50 120 120 Average Speed 115 | 85 120 120 Slowest Speed 150 | 120 120 150 Overloaded Moves . | . . . Propulsion Burnouts . | . . . Robots Hopped . | . . . Potential Cave-ins . | . . . Cave-ins Triggered . | . . . Exploration Rate (%) 20 | 3 26 33 Regions Visited 2 Branch Regions 1 Pre-discovered Areas . | . . . Known Exits Taken . | . . . Unknown Exits Taken 2 | 1 1 . Scrap Searched 1 | . . 1 Spaces Dug . | . . . Terrain Destroyed 33 | . . 33 Melee . | . . . Projectile . | . . . AOE 33 | . . 33 Terrain Rammed . | . . . Walls Destroyed . | . . . Machines Disabled . | . . . Actions | -11 -10 -10 --------- Run | Yrd Mat Min Total 467 | 57 190 220 Wait 37 | 1 36 . Move 372 | 45 120 207 Hop . | . . . Pick Up 14 | 5 8 1 Fast Attach 1 | 1 . . Attach 7 | 5 2 . Detach . | . . . Swap 1 | . . 1 Drop . | . . . Fire 35 | . 24 11 Melee . | . . . Ram . | . . . Kick . | . . . Crush . | . . . Escape Stasis . | . . . Rewire . | . . . Trap . | . . . Miscellaneous . | . . . Route ------- -11/Scrapyard -10/Materials -10/Mines History --------- Turn | Location | Event 15 | -11/Scrapyard | Discovered new exit (range 16) 52 | -11/Scrapyard | Entered Materials 285 | -10/Materials | Discovered new exit (range 10) 310 | -10/Materials | Entered Mines 313 | -10/Mines | Build established: Mutant 487 | -10/Mines | YI-UF0 nonchalantly dropped a Grenade Launcher on the ground 566 | -10/Mines | Assembled infested the area 582 | -10/Mines | Core integrity fell below 50% 591 | -10/Mines | Core integrity fell below 20% 592 | -10/Mines | Destroyed by as-37944 with Assembled Rifle Last Messages --------------- 00579_ U-05 Engineer lays Concrete. 00579_ Ion Engine destroyed. 00579_ System corrupted by crushing effect (+2). 00579_ Knocked back. 00580_ U-05 Engineer lays Concrete. 00581_ U-05 Engineer builds a Wall. 00582_ U-05 Engineer destroyed. 00582_ U-05 Engineer lays Concrete. 00584_ as-29916 destroyed. 00584_ as-73314 destroyed. 00584_ Destroyed Terrain Scanner. 00584_ U-05 Engineer destroyed. 00584_ Knocked back. 00585_ ECM Suite destroyed. 00585_ System corrupted by crushing effect (+3). 00585_ Knocked back. 00586_ Grenade Launcher destroyed. 00587_ Critical hit (Destroy). 00587_ Aluminum Leg destroyed. 00591_ Assault Rifle destroyed. Map ----- +----------------------------------------------------+ | ????????????????????????????????????????????? | | ????????????????????????????????????????????? | | ????????????????????????????????????????????? | | ????????????????????????????????????????????? | | ????????????????????????????????????????????? | | ????????????????????????????????????????????? | | ????????????????????????????????????????????? | | ????????????????????????????????????????????? | | ????????????????????????????????????????????? | | ????????????????????????????????????????????? | | ????????????????????????????????######??????? | | ???????????????????????????????## ##?????? | | ??????????????????????????????## #?????? | | ???????????????#??????????????# #?????? | | ???????????????# ?????????????# ##?????? | | ???????#???????# ?????????????## #??????? | | ??????? ?????# #?????????????## /#??????? | | ?????? ???## #?????????????## /%#??????? | | ?????? ### ??????????????## #####??? | | ?????? a ???????????????# #??? | | ??????# aa #??????######### ##?? | | ???????? aaaa ###?### ## ###### ##?? | | ??????????? t a ### ##### ##?? | | ??????????????# %* r ] ### #??? | | ??????????????# a =%! #??? | | ??????????????# % |aaa@ ##?? | | ??????????????## # #### ##?? | | ???????????????##### ## ##?## ##?? | | ???????????????????####### ##??# ###?? | | ?????????????????????????# ##??# ###???? | | ?????????????????????????# ##?# ###?????? | | ?????????????????????????# #??## ##???????? | | ?????????????????????????# #???####????????? | | ????????????????????????## #???????????????? | | ????????????????????????# #???????????????? | | ????????????????????????# ###???????????????? | | ?????????????####???????# #?????????????????? | | ????????????## #???????# #?????????????????? | | ????????????# #?????### #?????????????????? | | ????????????# ####??# #?????????????????? | | ????????????## #??# ##?????????????????? | | ?????????????# ## #??# ############???????? | | ?????????????# ## #??# #???????? | | ?????????????# # #### ########## #???????? | | ?????????????# #????????# #???????? | | ????????????## #########????????# #???????? | | ???????????## ##???????????????# #???????? | | ??????????## ##??????????????# #???????? | | ??????????# """" ##?????????????# #???????? | | ??????????# """" #?????????????# #???????? | +----------------------------------------------------+ Best States ------------- Heat Dissipation 25 Energy Generation 10 Energy Capacity 250 Matter Stores 300 Matter Capacity 300 Sight Range 16 Terrain Scan Density 10 ECM Strength 1 Evasion (%) 55 Item Schematics ----------------- None Robot Schematics ------------------ None Fabricated ------------ Nothing Repaired ---------- Nothing Studied --------- None Alien Tech Used ----------------- None Achievements -------------- None Challenges ------------ None Game ------ Seed AblativeMeleeWeb Manual? 0 Play Time 00:06:05 Cumulative 17.6 hours Start 2026.01.12 @ 15:36:37 End 2026.01.12 @ 15:43:12 Sessions 1 Manual Loads 0 Difficulty Rogue Special Mode None Game No. 46 Rogue 46 Adventurer 0 Explorer 0 Win Type - Total 0 Types 0/0/0/0/0/0/0/0/0/0 Lore% 11 Gallery% 19 Achievement% 15 Wizard Run 0 Options --------- Layout 0 ASCII 0 Keyboard 0 Movement Arrows Keybinds 0 Fullscreen 1 Font 18/SmallcapsGlow Map View 76x50 Zoom Use 0% Tactical HUD 1 Map Filters NONE Filters NONE Steam 1 RUN: 7b39554d-5065-4c25-8db2-e374bdd87388